fUST/lending_fUST_20240522
["ID","MTS","AMOUNT","RATE_DAILY","PERIOD"]
[327728186,1716388250392,-151.0,0.000329,2]
[327728187,1716388250402,-629.839864,0.000329,2]
[327728188,1716388250411,-151.0,0.000329,2]
[327728189,1716388250421,-629.839864,0.000329,2]
[327728190,1716388250434,-629.839864,0.000329,2]
[327728191,1716388250443,-629.839864,0.000329,2]
[327728192,1716388250452,-151.0,0.000329,2]
[327728193,1716388250463,-151.0,0.000329,2]
[327728194,1716388250472,-629.839864,0.000329,2]
[327728195,1716388250482,-629.839864,0.000329,2]
[327728196,1716388250491,-629.839864,0.000329,2]
[327728197,1716388250503,-629.839864,0.000329,2]
[327728198,1716388250514,-151.0,0.000329,2]
[327728199,1716388250523,-151.0,0.000329,2]
[327728200,1716388250532,-151.0,0.000329,2]
[327728201,1716388250541,-151.0,0.000329,2]
[327728202,1716388250549,-151.0,0.000329,2]
[327728203,1716388250559,-151.0,0.000329,2]
[327728204,1716388250568,-151.0,0.000329,2]
[327728205,1716388250577,-151.0,0.000329,2]
[327728206,1716388250587,-151.0,0.000329,2]
[327728207,1716388250596,-151.0,0.000329,2]
[327728208,1716388250605,-151.0,0.000329,2]
[327728209,1716388250615,-151.0,0.000329,2]
[327728210,1716388250624,-151.0,0.000329,2]
[327728211,1716388250633,-151.0,0.000329,2]
[327728212,1716388250643,-227.040295,0.000329,2]
[327728213,1716388250652,-500.0,0.00032904,3]
[327728214,1716388250661,-500.0,0.00032931,4]
[327728215,1716388250671,-500.0,0.00032958,5]
[327728216,1716388250680,-500.0,0.00032986,6]
[327728217,1716388250689,-1399.26073064,0.00033,2]
[327728218,1716388250699,-1000.0,0.00033,50]
[327728219,1716388250708,-1000.0,0.00033,55]
[327728220,1716388250718,-150.0,0.00033,5]
[327728221,1716388250727,-500.0,0.00033013,7]
[327728222,1716388250737,-500.0,0.00033041,8]
[327728223,1716388250747,-500.0,0.00033068,9]
[327728224,1716388250757,-153.0,0.00033085,2]
[327728225,1716388250767,-153.0,0.00033085,2]
[327728226,1716388250776,-153.0,0.00033085,2]
[327728227,1716388250786,-153.0,0.00033085,2]
[327728228,1716388250795,-153.0,0.00033085,2]
[327728229,1716388250804,-153.0,0.00033085,2]
[327728230,1716388250814,-153.0,0.00033085,2]
[327728231,1716388250823,-153.0,0.00033085,2]
[327728232,1716388250832,-153.0,0.00033085,2]
[327728233,1716388250842,-153.0,0.00033085,2]
[327728234,1716388250852,-153.0,0.00033085,2]
[327728235,1716388250861,-153.0,0.00033085,2]
[327728236,1716388250870,-153.0,0.00033085,2]
[327728237,1716388250880,-153.0,0.00033085,2]
[327728238,1716388250889,-153.0,0.00033085,2]
[327728239,1716388250899,-153.0,0.00033085,2]
[327728240,1716388250908,-153.0,0.00033085,2]
[327728241,1716388250917,-153.0,0.00033085,2]
[327728242,1716388250927,-153.0,0.00033085,2]
[327728243,1716388250936,-153.0,0.00033086,2]
[327728244,1716388250945,-153.0,0.00033086,2]
[327728245,1716388250954,-538.34788824,0.00033088,4]
[327728246,1716388250964,-500.0,0.00033095,10]
[327728247,1716388250973,-500.0,0.00033123,11]
[327728248,1716388250982,-151.85986035,0.00033147,7]
[327728249,1716388250991,-500.0,0.0003315,12]
[327728250,1716388251002,-500.0,0.00033178,13]
[327728251,1716388251011,-277.39889248,0.000332,3]
[327728255,1716388322094,12050.93300194,0.00020913,2]
[327728258,1716388353935,331.10166785,9.999e-05,2]
[327728259,1716388358028,690.50342998,9.999e-05,2]
[327728261,1716388378558,658.40471002,9.999e-05,2]
[327728262,1716388383532,410.64660071,9.999e-05,2]
[327728266,1716388384529,154.95351395,9.999e-05,2]
[327728268,1716388391611,702.90258977,9.999e-05,2]
[327728269,1716388395057,154.95351395,9.998e-05,2]
[327728271,1716388412992,684.90731694,9.999e-05,2]
[327728272,1716388416110,194.53180167,9.999e-05,2]
[327728278,1716389016929,13809.45969825,0.0002,11]
[327728279,1716389137303,6904.72984913,0.0001998,11]
[327728285,1716389231151,-262.5749045,0.00018968,2]
[327728286,1716389231174,-154.9690062,0.00019792,2]
[327728287,1716389231196,-12050.93300194,0.00019793,2]
[327728288,1716389231218,-8167.16723736,0.00019794,2]
[327728289,1716389257163,3452.36492456,0.0002,11]
[327728290,1716389346169,-1289.794051,0.00018995,2]
[327728291,1716389346192,-1134.40317214,0.000197,2]
[327728292,1716389346213,-155.01275323,0.00019792,2]
[327728293,1716389346234,-10200.85107104,0.00019793,2]
[327728294,1716389346381,-77892.73506824,0.00019794,2]
[327728295,1716389346404,-453.57835529,0.000198,2]
[327728296,1716389346427,-428.46,0.0001999,3]
[327728297,1716389346447,-214.23,0.0001999,3]
[327728298,1716389346469,-642.73,0.0001999,3]
[327728299,1716389346491,-17382.24242983,0.0002,2]
[327728300,1716389347169,-17212.54946267,0.0002,2]
[327728301,1716389347193,-453.57835525,0.00020053,2]
[327728302,1716389347217,-453.57835525,0.00020306,2]
[327728303,1716389347241,-453.57835525,0.00020559,2]
[327728304,1716389347264,-453.57835525,0.00020812,2]
[327728305,1716389347287,-500.0,0.0002091,2]
[327728306,1716389347310,-500.0,0.0002091,2]
[327728307,1716389347332,-500.0,0.0002091,2]
[327728308,1716389347355,-451.50748129,0.0002091,2]
[327728309,1716389347386,-626.7255896,0.0002091,2]
[327728310,1716389347411,-500.0,0.0002091,2]
[327728311,1716389347433,-500.0,0.0002091,2]
[327728312,1716389347455,-500.0,0.0002091,2]
[327728313,1716389347476,-529.0,0.0002091,2]
[327728314,1716389347499,-500.0,0.0002091,2]
[327728315,1716389347524,-500.0,0.0002091,2]
[327728316,1716389347548,-500.0,0.0002091,2]
[327728317,1716389347570,-617.0,0.0002091,2]
[327728318,1716389347592,-258.95607046,0.0002091,2]
[327728319,1716389347616,-500.0,0.0002091,2]
[327728320,1716389347644,-500.0,0.0002091,2]
[327728321,1716389347667,-500.0,0.0002091,2]
[327728322,1716389347692,-500.0,0.0002091,2]
[327728323,1716389347713,-500.0,0.0002091,2]
[327728324,1716389347735,-500.0,0.0002091,2]
[327728325,1716389347762,-500.0,0.0002091,2]
[327728326,1716389347787,-500.0,0.0002091,2]
[327728327,1716389347809,-500.0,0.0002091,2]
[327728328,1716389347835,-500.0,0.0002091,2]
[327728329,1716389347860,-500.0,0.0002091,2]
[327728330,1716389347884,-500.0,0.0002091,2]
[327728331,1716389347907,-500.0,0.0002091,2]
[327728332,1716389347931,-500.0,0.0002091,2]
[327728333,1716389347955,-500.0,0.0002091,2]
[327728334,1716389347979,-500.0,0.0002091,2]
[327728335,1716389348003,-500.0,0.0002091,2]
[327728336,1716389348025,-500.0,0.0002091,2]
[327728337,1716389348047,-500.0,0.0002091,2]
[327728338,1716389348080,-500.0,0.0002091,2]
[327728339,1716389348108,-500.0,0.0002091,2]
[327728340,1716389348133,-500.0,0.0002091,2]
[327728341,1716389348159,-500.0,0.0002091,2]
[327728342,1716389348183,-500.0,0.0002091,2]
[327728343,1716389348208,-500.0,0.0002091,2]
[327728344,1716389348235,-500.0,0.0002091,2]
[327728345,1716389348260,-500.0,0.0002091,2]
[327728346,1716389348286,-500.0,0.0002091,2]
[327728347,1716389348311,-500.0,0.0002091,2]
[327728348,1716389348336,-500.0,0.0002091,2]
[327728349,1716389348361,-500.0,0.0002091,2]
[327728350,1716389348389,-500.0,0.0002091,2]
[327728351,1716389348412,-500.0,0.0002091,2]
[327728352,1716389348437,-500.0,0.0002091,2]
[327728353,1716389348462,-500.0,0.0002091,2]
[327728354,1716389348488,-500.0,0.0002091,2]
[327728355,1716389348514,-500.0,0.0002091,2]
[327728356,1716389348541,-500.0,0.0002091,2]
[327728357,1716389348568,-500.0,0.0002091,2]
[327728358,1716389348595,-500.0,0.0002091,2]
[327728359,1716389348621,-500.0,0.0002091,2]
[327728360,1716389348646,-500.0,0.0002091,2]
[327728361,1716389348672,-500.0,0.0002091,2]
[327728362,1716389348831,-500.0,0.0002091,2]
[327728363,1716389348855,-500.0,0.0002091,2]
[327728364,1716389348886,-500.0,0.0002091,2]
[327728365,1716389348910,-500.0,0.0002091,2]
[327728366,1716389348936,-500.0,0.0002091,2]
[327728367,1716389348961,-500.0,0.0002091,2]
[327728368,1716389348987,-647.05830682,0.0002091,2]
[327728369,1716389349009,-18652.1463136,0.00020913,2]
[327728370,1716389349031,-856.92,0.0002136,3]
[327728371,1716389349053,-428.46,0.0002136,3]
[327728372,1716389349076,-1134.40317207,0.00021999,2]
[327728373,1716389349101,-155.40007447,0.000223,2]
[327728374,1716389349128,-151.0,0.00023709,3]
[327728375,1716389349152,-151.0,0.00023709,3]
[327728376,1716389349175,-1134.40317207,0.00024297,2]
[327728377,1716389349198,-162.331312,0.00024384,2]
[327728378,1716389349222,-193.463278,0.00024384,2]
[327728379,1716389349309,500.0,0.0002091,2]
[327728380,1716389349353,500.0,0.0002091,2]
[327728381,1716389349409,500.0,0.0002091,2]
[327728382,1716389349440,500.0,0.0002091,2]
[327728383,1716389349481,500.0,0.0002091,2]
[327728384,1716389349533,494.11749204,0.0002091,2]
[327728425,1716389434644,-888.32158186,0.00025981,2]
[327728426,1716389434654,-1134.40317207,0.00026596,2]
[327728428,1716389434663,-495.06,0.0002711,2]
[327728430,1716389434678,-152.065,0.0002711,2]
[327728432,1716389434692,-20635.64415,0.00028,4]
[327728433,1716389434702,-441.0,0.00028769,2]
[327728434,1716389434711,-357.0,0.00028769,2]
[327728435,1716389434720,-268.59668125,0.00028769,2]
[327728436,1716389434730,-500.0,0.00028769,2]
[327728437,1716389434740,-485.1,0.00028769,2]
[327728438,1716389434749,-500.0,0.00028769,2]
[327728439,1716389434759,-500.0,0.00028769,2]
[327728440,1716389434769,-627.31070292,0.00028769,2]
[327728441,1716389434784,-500.0,0.00028769,2]
[327728442,1716389434794,-500.0,0.00028769,2]
[327728443,1716389434804,-500.0,0.00028769,2]
[327728444,1716389434814,-500.0,0.00028769,2]
[327728445,1716389434824,-500.0,0.00028769,2]
[327728446,1716389434834,-500.0,0.00028769,2]
[327728447,1716389434844,-1726.18246229,0.0002877,11]
[327728448,1716389434854,-3826.49367762,0.0002877,2]
[327728491,1716389440331,-770.53344561,0.0002876,3]
[327728493,1716389440343,-1288.12655439,0.0002876,3]
[327728495,1716389440352,-500.0,0.00028769,2]
[327728496,1716389440361,-500.0,0.00028769,2]
[327728498,1716389440371,-500.0,0.00028769,2]
[327728499,1716389440380,-500.0,0.00028769,2]
[327728501,1716389440390,-477.68682114,0.00028769,2]
[327728502,1716389440400,-2534.45662447,0.0002877,2]
[327728504,1716389440412,-14461.14302162,0.0002877,2]
[327728751,1716389444733,-7324.79139826,0.0002877,2]
[327728765,1716389447425,-94559.15623754,0.0002877,2]
[327728766,1716389447435,-150.95471359,0.00028809,4]
[327728767,1716389447447,-1134.40317207,0.00028894,2]
[327728768,1716389447457,-150.95471359,0.00029397,2]
[327728769,1716389447467,-179000.0,0.000299,2]
[327728770,1716389447476,-151.0,0.000299,2]
[327728771,1716389447485,-577.297069,0.000299,2]
[327728772,1716389447494,-577.297069,0.000299,2]
[327728773,1716389447505,-151.0,0.000299,2]
[327728774,1716389447514,-151.0,0.000299,2]
[327728775,1716389447523,-697.507876,0.000299,2]
[327728776,1716389447533,-697.507876,0.000299,2]
[327728777,1716389447542,-151.0,0.000299,2]
[327728778,1716389447552,-151.0,0.000299,2]
[327728779,1716389447561,-157.898362,0.000299,2]
[327728780,1716389447570,-151.0,0.000299,2]
[327728781,1716389447583,-151.0,0.000299,2]
[327728782,1716389447592,-151.0,0.000299,2]
[327728783,1716389447602,-151.0,0.000299,2]
[327728784,1716389447611,-451.593879,0.000299,2]
[327728785,1716389447621,-451.593879,0.000299,2]
[327728786,1716389447631,-151.0,0.000299,2]
[327728787,1716389447640,-151.0,0.000299,2]
[327728788,1716389447651,-151.0,0.000299,2]
[327728789,1716389447660,-151.0,0.000299,2]
[327728790,1716389447670,-151.0,0.000299,2]
[327728791,1716389447679,-151.0,0.000299,2]
[327728792,1716389447690,-151.0,0.000299,2]
[327728793,1716389447703,-860.303595,0.000299,2]
[327728794,1716389447712,-860.303595,0.000299,2]
[327728795,1716389447722,-151.0,0.000299,2]
[327728796,1716389447731,-151.0,0.000299,2]
[327728797,1716389447740,-151.0,0.000299,2]
[327728798,1716389447749,-151.0,0.000299,2]
[327728799,1716389447758,-354.69121,0.000299,2]
[327728800,1716389447768,-354.69121,0.000299,2]
[327728801,1716389447778,-151.0,0.000299,2]
[327728802,1716389447793,-151.0,0.000299,2]
[327728803,1716389447802,-151.0,0.000299,2]
[327728804,1716389447812,-200.926995,0.000299,2]
[327728805,1716389447822,-151.0,0.000299,2]
[327728806,1716389447832,-151.0,0.000299,2]
[327728807,1716389447841,-200.926995,0.000299,2]
[327728808,1716389447851,-320.461395,0.000299,2]
[327728809,1716389447862,-320.461395,0.000299,2]
[327728810,1716389447873,-7509.3768553,0.0003,2]
[327728811,1716389447884,-30701.97029533,0.0003,2]
[327728812,1716389447893,-775.73782556,0.0003,2]
[327728813,1716389447903,-23947.95636968,0.0003,30]
[327728814,1716389447912,-1500.0,0.0003,2]
[327728815,1716389447921,-151.0,0.0003,2]
[327728816,1716389447931,-151.0,0.0003,2]
[327728817,1716389447941,-151.0,0.0003,2]
[327728818,1716389447954,-151.0,0.0003,2]
[327728819,1716389447965,-151.0,0.0003,2]
[327728820,1716389447975,-151.0,0.0003,2]
[327728821,1716389447984,-577.297069,0.0003,2]
[327728822,1716389447994,-577.297069,0.0003,2]
[327728823,1716389448004,-184.294571,0.0003,2]
[327728824,1716389448014,-151.0,0.0003,2]
[327728825,1716389448024,-151.0,0.0003,2]
[327728826,1716389448033,-151.0,0.0003,2]
[327728827,1716389448042,-151.0,0.0003,2]
[327728828,1716389448052,-151.0,0.0003,2]
[327728829,1716389448061,-151.0,0.0003,2]
[327728830,1716389448070,-697.507876,0.0003,2]
[327728831,1716389448079,-4135.19420899,0.0003,120]
[327728832,1716389448088,-697.507876,0.0003,2]
[327728833,1716389448097,-262.521682,0.0003,2]
[327728834,1716389448218,-151.36829,0.0003,2]
[327728835,1716389448228,-151.0,0.0003,2]
[327728836,1716389448237,-151.0,0.0003,2]
[327728837,1716389448247,-151.0,0.0003,2]
[327728838,1716389448257,-151.0,0.0003,2]
[327728839,1716389448267,-451.593879,0.0003,2]
[327728840,1716389448276,-451.593879,0.0003,2]
[327728841,1716389448286,-151.0,0.0003,2]
[327728842,1716389448295,-151.0,0.0003,2]
[327728843,1716389448304,-151.0,0.0003,2]
[327728844,1716389448314,-151.0,0.0003,2]
[327728845,1716389448323,-151.0,0.0003,2]
[327728846,1716389448333,-151.0,0.0003,2]
[327728847,1716389448342,-151.0,0.0003,2]
[327728848,1716389448352,-860.303595,0.0003,2]
[327728849,1716389448361,-860.303595,0.0003,2]
[327728850,1716389448371,-151.0,0.0003,2]
[327728851,1716389448382,-151.0,0.0003,2]
[327728852,1716389448392,-158.389367,0.0003,2]
[327728853,1716389448402,-151.0,0.0003,2]
[327728854,1716389448411,-354.69121,0.0003,2]
[327728855,1716389448420,-354.69121,0.0003,2]
[327728856,1716389448430,-151.0,0.0003,2]
[327728857,1716389448439,-151.0,0.0003,2]
[327728858,1716389448452,-200.926995,0.0003,2]
[327728859,1716389448462,-151.0,0.0003,2]
[327728860,1716389448472,-151.0,0.0003,2]
[327728861,1716389448481,-200.926995,0.0003,2]
[327728862,1716389448490,-320.461395,0.0003,2]
[327728863,1716389448500,-320.461395,0.0003,2]
[327728864,1716389448510,-270.779268,0.00030137,2]
[327728865,1716389448519,-270.779268,0.00030137,2]
[327728866,1716389448528,-270.779268,0.00030137,2]
[327728867,1716389448538,-270.779268,0.00030137,2]
[327728868,1716389448547,-1972.65713512,0.00031,2]
[327728869,1716389448557,-151.0,0.00031108,2]
[327728870,1716389448566,-200.926995,0.00031108,2]
[327728871,1716389448575,-151.0,0.00031108,2]
[327728872,1716389448586,-151.0,0.00031108,2]
[327728873,1716389448595,-200.926995,0.00031108,2]
[327728874,1716389448604,-320.461395,0.00031108,2]
[327728875,1716389448614,-270.779268,0.00031108,2]
[327728876,1716389448624,-320.461395,0.00031108,2]
[327728877,1716389448633,-270.779268,0.00031108,2]
[327728878,1716389448643,-1113.37468521,0.00031108,4]
[327728879,1716389448652,-1134.40317207,0.00031193,2]
[327728880,1716389448662,-168.2728546,0.00031837,7]
[327728881,1716389448672,-168.2728546,0.00031862,7]
[327728882,1716389448681,-154.82093995,0.00031877,7]
[327728883,1716389448691,-168.2728546,0.0003195,7]
[327728884,1716389448704,-743.61962282,0.00032,2]
[327728885,1716389448714,-151.0,0.00032,2]
[327728886,1716389448724,-151.0,0.00032,2]
[327728887,1716389448734,-860.303595,0.00032,2]
[327728888,1716389448744,-860.303595,0.00032,2]
[327728889,1716389448754,-151.0,0.00032,2]
[327728890,1716389448763,-151.0,0.00032,2]
[327728891,1716389448772,-151.0,0.00032,2]
[327728892,1716389448786,-354.69121,0.00032,2]
[327728893,1716389448796,-354.69121,0.00032,2]
[327728894,1716389448806,-1000.0,0.00032,6]
[327728895,1716389448815,-168.2728546,0.00032277,7]
[327728896,1716389448825,-150.95471359,0.00032663,2]
[327728897,1716389448835,-250.41575527,0.00032663,2]
[327728898,1716389448844,-417.06273246,0.00032664,2]
[327728899,1716389448854,-154.82093995,0.00032692,7]
[327728900,1716389448865,-3131.125128,0.000327,2]
[327728901,1716389448875,-323.15342602,0.000327,30]
[327728902,1716389448884,-4222.10020806,0.00032716,2]
[327728903,1716389448894,-167.1264947,0.00032755,3]
[327728904,1716389448903,-159.298408,0.00032795,2]
[327728905,1716389448913,-151.0,0.00032795,2]
[327728906,1716389448922,-151.520885,0.00032795,2]
[327728907,1716389448932,-232.57569195,0.00032796,4]
[327728908,1716389448942,-348.43358152,0.00032796,2]
[327728909,1716389448956,-400.71262343,0.00032796,4]
[327728910,1716389448966,-529.84344689,0.00032796,4]
[327728911,1716389448976,-281.05958494,0.00032796,4]
[327728912,1716389448987,-187.74059143,0.00032796,4]
[327728913,1716389448997,-331.64106358,0.00032796,4]
[327728914,1716389449007,-520.37291313,0.00032796,4]
[327728915,1716389449017,-297.24642415,0.00032796,4]
[327728916,1716389449027,-659.27672559,0.00032796,4]
[327728917,1716389449037,-248.24764543,0.00032796,4]
[327728918,1716389449047,-517.35254746,0.00032796,4]
[327728919,1716389449062,-704.13472746,0.00032796,4]
[327728920,1716389449072,-167.7535976,0.00032796,4]
[327728921,1716389449082,-606.63412589,0.00032796,4]
[327728922,1716389449092,-194.86360978,0.00032796,4]
[327728923,1716389449102,-2136.91173092,0.00032798,4]
[327728924,1716389449111,-7889.07051852,0.00032798,4]
[327728925,1716389449121,-26212.95298073,0.00032798,4]
[327728926,1716389449130,-910.55549836,0.00032798,4]
[327728927,1716389449140,-9561.24585473,0.00032798,4]
[327728928,1716389449149,-1885.8334935,0.00032798,4]
[327728929,1716389449158,-452.43532992,0.00032798,4]
[327728930,1716389449168,-261.10136921,0.00032798,4]
[327728931,1716389449177,-2644.61954065,0.00032798,4]
[327728932,1716389449187,-1405.61526917,0.00032798,4]
[327728933,1716389449199,-157.61556082,0.00032798,4]
[327728934,1716389449209,-165.166004,0.00032798,4]
[327728935,1716389449219,-354.9995781,0.00032798,4]
[327728936,1716389449228,-513.4844886,0.00032798,4]
[327728937,1716389449238,-818.31964662,0.00032798,2]
[327728938,1716389449247,-2678.29668145,0.00032798,4]
[327728939,1716389449256,-207.24447727,0.00032798,4]
[327728940,1716389449266,-156.6117065,0.00032798,4]
[327728941,1716389449276,-285.03925166,0.00032798,4]
[327728942,1716389449286,-1086.51357734,0.00032798,4]
[327728943,1716389449295,-154.97885897,0.00032798,4]
[327728944,1716389449305,-522.61290648,0.00032798,4]
[327728945,1716389449314,-837.66004616,0.00032798,4]
[327728946,1716389449324,-1496.05848101,0.00032798,4]
[327728947,1716389449333,-1897.58698072,0.00032798,4]
[327728948,1716389449343,-1581.42130168,0.00032798,4]
[327728949,1716389449352,-1353.56089671,0.00032798,4]
[327728950,1716389449362,-151.0,0.00032798,2]
[327728951,1716389449371,-151.0,0.00032798,2]
[327728952,1716389449382,-151.0,0.00032798,2]
[327728953,1716389449391,-151.0,0.00032798,2]
[327728954,1716389449401,-577.297069,0.00032798,2]
[327728955,1716389449410,-577.297069,0.00032798,2]
[327728956,1716389449420,-151.0,0.00032798,2]
[327728957,1716389449430,-151.0,0.00032798,2]
[327728958,1716389449441,-151.0,0.00032798,2]
[327728959,1716389449452,-697.507876,0.00032798,2]
[327728960,1716389449461,-697.507876,0.00032798,2]
[327728961,1716389449471,-151.0,0.00032798,2]
[327728962,1716389449481,-249.567945,0.00032798,2]
[327728963,1716389449490,-151.0,0.00032798,2]
[327728964,1716389449500,-151.0,0.00032798,2]
[327728965,1716389449509,-151.0,0.00032798,2]
[327728966,1716389449519,-151.0,0.00032798,2]
[327728967,1716389449528,-451.593879,0.00032798,2]
[327728968,1716389449538,-151.0,0.00032798,2]
[327728969,1716389449548,-451.593879,0.00032798,2]
[327728970,1716389449557,-151.0,0.00032798,2]
[327728971,1716389449567,-451.593879,0.00032798,2]
[327728972,1716389449576,-451.593879,0.00032798,2]
[327728973,1716389449587,-151.0,0.00032798,2]
[327728974,1716389449597,-151.0,0.00032798,2]
[327728975,1716389449607,-151.0,0.00032798,2]
[327728976,1716389449616,-151.0,0.00032798,2]
[327728977,1716389449625,-178.714804,0.00032798,2]
[327728978,1716389449634,-151.0,0.00032798,2]
[327728979,1716389449644,-151.0,0.00032798,2]
[327728980,1716389449654,-151.0,0.00032798,2]
[327728981,1716389449664,-207.861624,0.00032798,2]
[327728982,1716389449673,-860.303595,0.00032798,2]
[327728983,1716389449683,-860.303595,0.00032798,2]
[327728984,1716389449692,-151.0,0.00032798,2]
[327728985,1716389449705,-151.0,0.00032798,2]
[327728986,1716389449714,-237.351224,0.00032798,2]
[327728987,1716389449723,-354.69121,0.00032798,2]
[327728988,1716389449732,-354.69121,0.00032798,2]
[327728989,1716389449741,-151.0,0.00032798,2]
[327728990,1716389449751,-200.926995,0.00032798,2]
[327728991,1716389449762,-151.0,0.00032798,2]
[327728992,1716389449771,-151.0,0.00032798,2]
[327728993,1716389449781,-200.926995,0.00032798,2]
[327728994,1716389449883,-151.0,0.00032798,2]
[327728995,1716389449894,-320.461395,0.00032798,2]
[327728996,1716389449904,-151.0,0.00032798,2]
[327728997,1716389449913,-270.779268,0.00032798,2]
[327728998,1716389449923,-320.461395,0.00032798,2]
[327728999,1716389449931,-270.779268,0.00032798,2]
[327729000,1716389449941,-558.672687,0.00032798,2]
[327729001,1716389449952,-925.763923,0.00032798,2]
[327729002,1716389449961,-558.672687,0.00032798,2]
[327729003,1716389449971,-925.763923,0.00032798,2]
[327729004,1716389449980,-394.91761,0.00032798,2]
[327729005,1716389449990,-394.91761,0.00032798,2]
[327729006,1716389449999,-500.0,0.00032799,6]
[327729007,1716389450008,-500.0,0.00032799,6]
[327729008,1716389450018,-500.0,0.00032799,6]
[327729009,1716389450028,-200.926995,0.00032799,2]
[327729010,1716389450037,-151.0,0.00032799,2]
[327729011,1716389450046,-286.055544,0.00032799,2]
[327729012,1716389450055,-200.926995,0.00032799,2]
[327729013,1716389450064,-151.0,0.00032799,2]
[327729014,1716389450073,-320.461395,0.00032799,2]
[327729015,1716389450082,-151.0,0.00032799,2]
[327729016,1716389450091,-270.779268,0.00032799,2]
[327729017,1716389450101,-320.461395,0.00032799,2]
[327729018,1716389450110,-270.779268,0.00032799,2]
[327729019,1716389450119,-558.672687,0.00032799,2]
[327729020,1716389450128,-925.763923,0.00032799,2]
[327729021,1716389450138,-558.672687,0.00032799,2]
[327729022,1716389450147,-925.763923,0.00032799,2]
[327729023,1716389450156,-151.0,0.000328,2]
[327729024,1716389450166,-151.0,0.000328,2]
[327729025,1716389450175,-860.303595,0.000328,2]
[327729026,1716389450185,-860.303595,0.000328,2]
[327729027,1716389450195,-151.0,0.000328,2]
[327729028,1716389450206,-151.0,0.000328,2]
[327729029,1716389450215,-767.0,0.000328,2]
[327729030,1716389450224,-354.69121,0.000328,2]
[327729031,1716389450233,-354.69121,0.000328,2]
[327729032,1716389450242,-168.2728546,0.00032803,7]
[327729033,1716389450252,-500.0,0.00032876,2]
[327729034,1716389450262,-151.0,0.00032896,2]
[327729035,1716389450271,-151.0,0.00032896,2]
[327729036,1716389450280,-151.0,0.00032896,2]
[327729037,1716389450290,-697.507876,0.00032896,2]
[327729038,1716389450300,-697.507876,0.00032896,2]
[327729039,1716389450309,-500.0,0.00032897,6]
[327729040,1716389450319,-500.0,0.00032898,6]
[327729041,1716389450329,-500.0,0.00032898,6]
[327729042,1716389450339,-151.0,0.00032899,2]
[327729043,1716389450348,-577.297069,0.00032899,2]
[327729044,1716389450359,-577.297069,0.00032899,2]
[327729045,1716389450368,-500.0,0.00032899,6]
[327729046,1716389450378,-500.0,0.00032899,6]
[327729047,1716389450387,-500.0,0.00032899,6]
[327729048,1716389450397,-500.0,0.00032899,6]
[327729049,1716389450407,-500.0,0.00032899,6]
[327729050,1716389450417,-500.0,0.00032899,6]
[327729051,1716389450427,-500.0,0.00032899,6]
[327729052,1716389450437,-500.0,0.00032904,3]
[327729053,1716389450448,-500.0,0.00032931,4]
[327729054,1716389450457,-500.0,0.00032958,5]
[327729055,1716389450467,-151.0,0.00032958,2]